[Event "Late-Titled-Tuesday-Blitz-February-13-2024"]
[Site "Chess.com"]
[Date "2024.02.13"]
[Round "1"]
[White "Mops_2004"]
[Black "Flaccidmoves"]
[Result "1-0"]
[WhiteElo "2782"]
[BlackElo "2413"]
[TimeControl "180+1"]
[EndTime "14:08:27 PST"]
[Termination "Mops_2004 won by resignation"]

1. g3 {[%clk 0:03:00.9]} 1... g6 {[%clk 0:03:00.2]} 2. Bg2 {[%clk 0:03:00.5]}
2... Bg7 {[%clk 0:03:00.7]} 3. d4 {[%clk 0:03:00.3]} 3... Nf6 {[%clk 0:02:59.2]}
4. e4 {[%clk 0:02:59.8]} 4... d6 {[%clk 0:02:58.9]} 5. Nc3 {[%clk 0:02:58.8]}
5... O-O {[%clk 0:02:58.5]} 6. Nf3 {[%clk 0:02:59.5]} 6... e5 {[%clk 0:02:56.2]}
7. O-O {[%clk 0:02:44.7]} 7... exd4 {[%clk 0:02:55]} 8. Nxd4 {[%clk 0:02:44.9]}
8... Nc6 {[%clk 0:02:54.6]} 9. Nde2 {[%clk 0:02:27.3]} 9... Re8 {[%clk
0:02:45.2]} 10. h3 {[%clk 0:02:26.9]} 10... Bd7 {[%clk 0:02:29.8]} 11. Be3
{[%clk 0:02:26.7]} 11... a6 {[%clk 0:02:24.2]} 12. a4 {[%clk 0:02:26]} 12... Nb4
{[%clk 0:02:20.5]} 13. Qd2 {[%clk 0:02:16.5]} 13... Bc6 {[%clk 0:02:17.3]} 14.
a5 {[%clk 0:02:04.1]} 14... d5 {[%clk 0:02:10.8]} 15. Nd1 {[%clk 0:01:52.3]}
15... Nxc2 {[%clk 0:02:07]} 16. Qxc2 {[%clk 0:01:51.9]} 16... Nxe4 {[%clk
0:02:07.6]} 17. Bd4 {[%clk 0:01:45.7]} 17... Bb5 {[%clk 0:01:53.9]} 18. Bxg7
{[%clk 0:01:45.3]} 18... Kxg7 {[%clk 0:01:54.1]} 19. Re1 {[%clk 0:01:45.3]}
19... Qf6 {[%clk 0:01:51.3]} 20. Nec3 {[%clk 0:01:31.1]} 20... Bc6 {[%clk
0:01:38.2]} 21. Nxe4 {[%clk 0:01:17.5]} 21... dxe4 {[%clk 0:01:39.1]} 22. Bxe4
{[%clk 0:01:08.7]} 22... Bd7 {[%clk 0:01:29.5]} 23. Qc3 {[%clk 0:00:56.4]} 23...
Bxh3 {[%clk 0:01:26.5]} 24. Bxb7 {[%clk 0:00:47.9]} 24... Rxe1+ {[%clk
0:01:23.3]} 25. Qxe1 {[%clk 0:00:48.4]} 25... Rb8 {[%clk 0:01:21.7]} 26. Bg2
{[%clk 0:00:47.8]} 26... Bg4 {[%clk 0:01:16.7]} 27. Ne3 {[%clk 0:00:45.2]} 27...
Be6 {[%clk 0:01:13.6]} 28. Qc3 {[%clk 0:00:42.7]} 28... Rxb2 {[%clk 0:01:13.1]}
29. Qxf6+ {[%clk 0:00:42.7]} 29... Kxf6 {[%clk 0:01:13.6]} 30. Bf1 {[%clk
0:00:42.4]} 30... Bc8 {[%clk 0:01:12.1]} 31. Rc1 {[%clk 0:00:40.3]} 31... Ra2
{[%clk 0:01:09.7]} 32. Rxc7 {[%clk 0:00:40.1]} 32... Be6 {[%clk 0:01:08.9]} 33.
Rc5 {[%clk 0:00:39.4]} 33... Ke7 {[%clk 0:01:03.8]} 34. Bxa6 {[%clk 0:00:25.6]}
34... Kd6 {[%clk 0:01:03.8]} 35. Rb5 {[%clk 0:00:25.3]} 35... h5 {[%clk
0:00:58.5]} 36. Bb7 {[%clk 0:00:24]} 36... Kc7 {[%clk 0:00:52.6]} 37. a6 {[%clk
0:00:23.5]} 37... Bd7 {[%clk 0:00:52.4]} 38. Rc5+ {[%clk 0:00:23]} 38... Kb6
{[%clk 0:00:52]} 39. Rd5 {[%clk 0:00:21.9]} 39... Be6 {[%clk 0:00:45.6]} 40.
Rd6+ {[%clk 0:00:22.3]} 40... Ka7 {[%clk 0:00:45.6]} 41. Ng2 {[%clk 0:00:17.8]}
41... Bc4 {[%clk 0:00:40]} 42. Ne3 {[%clk 0:00:16]} 42... Bxa6 {[%clk
0:00:39.1]} 43. Rxa6+ {[%clk 0:00:14.8]} 43... Rxa6 {[%clk 0:00:40]} 44. Bxa6
{[%clk 0:00:15.4]} 44... Kxa6 {[%clk 0:00:40.6]} 45. Nc4 {[%clk 0:00:15.2]}
45... f6 {[%clk 0:00:36]} 46. Nd6 {[%clk 0:00:15.4]} 46... Kb6 {[%clk
0:00:32.7]} 47. Ne4 {[%clk 0:00:14.9]} 47... Kc6 {[%clk 0:00:30.7]} 48. Nxf6
{[%clk 0:00:15]} 48... Kd6 {[%clk 0:00:29.5]} 49. Kg2 {[%clk 0:00:15.4]} 49...
Ke6 {[%clk 0:00:29.4]} 50. Ne4 {[%clk 0:00:15.2]} 50... Kf5 {[%clk 0:00:29.4]}
51. Nd2 {[%clk 0:00:13]} 51... g5 {[%clk 0:00:29.1]} 52. f3 {[%clk 0:00:12.1]}
52... Ke5 {[%clk 0:00:28.6]} 53. Kf2 {[%clk 0:00:11.7]} 53... Kf5 {[%clk
0:00:28.3]} 54. Nf1 {[%clk 0:00:11.8]} 54... Ke5 {[%clk 0:00:28.2]} 55. Ne3
{[%clk 0:00:12.2]} 55... Kf6 {[%clk 0:00:27.4]} 56. g4 {[%clk 0:00:12]} 56... h4
{[%clk 0:00:24.4]} 57. Nc4 {[%clk 0:00:12.2]} 57... Ke6 {[%clk 0:00:23.2]} 58.
Ke3 {[%clk 0:00:11.8]} 58... Kf6 {[%clk 0:00:23.1]} 59. Nd2 {[%clk 0:00:08.6]}
59... Ke5 {[%clk 0:00:22.9]} 60. Ne4 {[%clk 0:00:09.1]} 60... h3 {[%clk
0:00:20.6]} 61. Nf2 {[%clk 0:00:08.4]} 61... h2 {[%clk 0:00:19.7]} 62. Nh1
{[%clk 0:00:09.1]} 62... Kd5 {[%clk 0:00:19.2]} 63. Kf2 {[%clk 0:00:08.2]} 63...
Ke5 {[%clk 0:00:19.9]} 64. Kg2 {[%clk 0:00:08.6]} 64... Kf4 {[%clk 0:00:20.5]}
65. Nf2 {[%clk 0:00:08.2]} 65... Ke3 {[%clk 0:00:20.5]} 66. Nh1 {[%clk
0:00:04.8]} 66... Kf4 {[%clk 0:00:20.5]} 67. Kf2 {[%clk 0:00:05.3]} 67... Ke5
{[%clk 0:00:19.9]} 68. Ke3 {[%clk 0:00:05.8]} 68... Kd5 {[%clk 0:00:20.2]} 69.
f4 {[%clk 0:00:04.9]} 69... gxf4+ {[%clk 0:00:20.4]} 70. Kxf4 {[%clk 0:00:05.8]}
70... Ke6 {[%clk 0:00:20.7]} 71. Kg3 {[%clk 0:00:06.1]} 71... Kf6 {[%clk
0:00:21]} 72. Kxh2 {[%clk 0:00:07]} 72... Kg5 {[%clk 0:00:21.8]} 73. Kg3 {[%clk
0:00:07.6]} 73... Kg6 {[%clk 0:00:22.3]} 74. Nf2 {[%clk 0:00:08.5]} 1-0

[Event "Late-Titled-Tuesday-Blitz-February-13-2024"]
[Site "Chess.com"]
[Date "2024.02.13"]
[Round "1"]
[White "IngOscarArdila"]
[Black "CrushingKings"]
[Result "1/2-1/2"]
[WhiteElo "2311"]
[BlackElo "2642"]
[TimeControl "180+1"]
[EndTime "14:08:30 PST"]
[Termination "Game drawn by repetition"]

1. d4 {[%clk 0:02:59.7]} 1... g6 {[%clk 0:02:59.4]} 2. c4 {[%clk 0:02:59.9]}
2... Bg7 {[%clk 0:03:00.3]} 3. Nf3 {[%clk 0:03:00.1]} 3... Nf6 {[%clk
0:03:00.4]} 4. Nc3 {[%clk 0:03:00.2]} 4... O-O {[%clk 0:03:01]} 5. e3 {[%clk
0:03:00.7]} 5... d6 {[%clk 0:03:00.3]} 6. Be2 {[%clk 0:03:01.1]} 6... Nbd7
{[%clk 0:02:59.6]} 7. O-O {[%clk 0:03:01.1]} 7... b6 {[%clk 0:03:00]} 8. Qc2
{[%clk 0:03:00.9]} 8... Bb7 {[%clk 0:03:00.5]} 9. Rd1 {[%clk 0:03:00.2]} 9...
Qe8 {[%clk 0:02:55.2]} 10. b3 {[%clk 0:02:57.8]} 10... e5 {[%clk 0:02:55.2]} 11.
dxe5 {[%clk 0:02:57.1]} 11... Nxe5 {[%clk 0:02:49.7]} 12. Nxe5 {[%clk
0:02:56.7]} 12... Qxe5 {[%clk 0:02:49.8]} 13. Bb2 {[%clk 0:02:55.9]} 13... Qg5
{[%clk 0:02:16.6]} 14. Bf1 {[%clk 0:02:42]} 14... Bf3 {[%clk 0:02:12.8]} 15. Rd2
{[%clk 0:02:17.6]} 15... Ng4 {[%clk 0:01:58.4]} 16. h3 {[%clk 0:02:12.5]} 16...
Ne5 {[%clk 0:01:56.5]} 17. Kh1 {[%clk 0:02:01.7]} 17... Bb7 {[%clk 0:01:45.6]}
18. Nd5 {[%clk 0:01:56.9]} 18... Qd8 {[%clk 0:01:35.2]} 19. f4 {[%clk
0:01:51.9]} 19... Nd7 {[%clk 0:01:35.4]} 20. Bxg7 {[%clk 0:01:52]} 20... Kxg7
{[%clk 0:01:36.3]} 21. Qc3+ {[%clk 0:01:49.8]} 21... f6 {[%clk 0:01:36.4]} 22.
Be2 {[%clk 0:01:40.6]} 22... Nc5 {[%clk 0:01:34]} 23. Bf3 {[%clk 0:01:36.9]}
23... a5 {[%clk 0:01:34.5]} 24. a3 {[%clk 0:01:35.7]} 24... c6 {[%clk
0:01:29.1]} 25. b4 {[%clk 0:01:28.8]} 25... Nd7 {[%clk 0:01:04.9]} 26. Nxf6
{[%clk 0:01:14.4]} 26... Qxf6 {[%clk 0:01:03.1]} 27. Qxf6+ {[%clk 0:01:11.3]}
27... Rxf6 {[%clk 0:01:03.4]} 28. Rad1 {[%clk 0:01:11]} 28... axb4 {[%clk
0:01:03]} 29. axb4 {[%clk 0:01:11.1]} 29... d5 {[%clk 0:00:19.2]} 30. cxd5
{[%clk 0:01:04.8]} 30... cxd5 {[%clk 0:00:19]} 31. Bxd5 {[%clk 0:01:05.2]} 31...
Bxd5 {[%clk 0:00:19.9]} 32. Rxd5 {[%clk 0:01:05.4]} 32... Nf8 {[%clk 0:00:20.8]}
33. Kg1 {[%clk 0:01:01.4]} 33... Ra3 {[%clk 0:00:20]} 34. Kf2 {[%clk 0:01:00.7]}
34... Re6 {[%clk 0:00:20]} 35. R1d3 {[%clk 0:00:59.4]} 35... Rxd3 {[%clk
0:00:19.7]} 36. Rxd3 {[%clk 0:00:59.6]} 36... Re4 {[%clk 0:00:20.5]} 37. b5
{[%clk 0:00:55.5]} 37... Rb4 {[%clk 0:00:19.7]} 38. Rd5 {[%clk 0:00:54.7]} 38...
Kf7 {[%clk 0:00:16.2]} 39. Kf3 {[%clk 0:00:52.8]} 39... Ke6 {[%clk 0:00:15.5]}
40. Re5+ {[%clk 0:00:52.3]} 40... Kd6 {[%clk 0:00:15.4]} 41. e4 {[%clk 0:00:45]}
41... Ne6 {[%clk 0:00:13.5]} 42. Rd5+ {[%clk 0:00:41.4]} 42... Ke7 {[%clk
0:00:13.7]} 43. g4 {[%clk 0:00:15.8]} 43... Rd4 {[%clk 0:00:11]} 44. Re5 {[%clk
0:00:13.9]} 44... Rd3+ {[%clk 0:00:10.9]} 45. Ke2 {[%clk 0:00:13.5]} 45... Rxh3
{[%clk 0:00:01.9]} 46. f5 {[%clk 0:00:13.9]} 46... Kf6 {[%clk 0:00:02.2]} 47.
Rxe6+ {[%clk 0:00:14.3]} 47... Kg5 {[%clk 0:00:03.1]} 48. Rxb6 {[%clk
0:00:14.6]} 48... gxf5 {[%clk 0:00:02.5]} 49. gxf5 {[%clk 0:00:14.3]} 49... Kf4
{[%clk 0:00:02.9]} 50. f6 {[%clk 0:00:14.6]} 50... Re3+ {[%clk 0:00:03.4]} 51.
Kf2 {[%clk 0:00:14.4]} 51... Rf3+ {[%clk 0:00:04]} 52. Ke2 {[%clk 0:00:14.3]}
52... Kg3 {[%clk 0:00:04.7]} 53. e5 {[%clk 0:00:14.2]} 53... h5 {[%clk
0:00:05.1]} 54. Rb7 {[%clk 0:00:13.1]} 54... h4 {[%clk 0:00:05.4]} 55. Rg7+
{[%clk 0:00:13.6]} 55... Kf4 {[%clk 0:00:05.8]} 56. Rh7 {[%clk 0:00:13.6]} 56...
h3 {[%clk 0:00:04.1]} 57. f7 {[%clk 0:00:13.4]} 57... Ke4 {[%clk 0:00:04.6]} 58.
Rxh3 {[%clk 0:00:12.6]} 58... Rxf7 {[%clk 0:00:04.8]} 59. Re3+ {[%clk
0:00:10.7]} 59... Kd5 {[%clk 0:00:05.1]} 60. e6 {[%clk 0:00:11.6]} 60... Re7
{[%clk 0:00:05.5]} 61. Kf3 {[%clk 0:00:11.2]} 61... Rxe6 {[%clk 0:00:06.2]} 62.
Rxe6 {[%clk 0:00:10.3]} 62... Kxe6 {[%clk 0:00:07.1]} 63. Ke4 {[%clk 0:00:10.9]}
63... Kd6 {[%clk 0:00:07.8]} 64. Kd4 {[%clk 0:00:11.8]} 64... Kc7 {[%clk
0:00:08.2]} 65. Kc5 {[%clk 0:00:12.2]} 65... Kb7 {[%clk 0:00:08.9]} 66. b6
{[%clk 0:00:12.5]} 66... Kb8 {[%clk 0:00:09.6]} 67. Kc6 {[%clk 0:00:11.7]} 67...
Kc8 {[%clk 0:00:10.2]} 68. Kd6 {[%clk 0:00:07.5]} 68... Kb7 {[%clk 0:00:10.2]}
69. Kc5 {[%clk 0:00:07.9]} 69... Kb8 {[%clk 0:00:10.6]} 70. Kd5 {[%clk
0:00:08.4]} 70... Kb7 {[%clk 0:00:10.9]} 71. Kc5 {[%clk 0:00:08.7]} 1/2-1/2

[Event "Late-Titled-Tuesday-Blitz-February-13-2024"]
[Site "Chess.com"]
[Date "2024.02.13"]
[Round "1"]
[White "Chempiblinka"]
[Black "Yurovskykh_Oleksandr"]
[Result "0-1"]
[WhiteElo "2364"]
[BlackElo "2692"]
[TimeControl "180+1"]
[EndTime "14:08:36 PST"]
[Termination "Yurovskykh_Oleksandr won on time"]

1. Nf3 {[%clk 0:03:00.9]} 1... d5 {[%clk 0:02:53.7]} 2. g3 {[%clk 0:03:00.8]}
2... c6 {[%clk 0:02:50.2]} 3. Bg2 {[%clk 0:02:54.5]} 3... Bg4 {[%clk 0:02:48]}
4. c4 {[%clk 0:02:54.6]} 4... e6 {[%clk 0:02:33.4]} 5. cxd5 {[%clk 0:02:52.7]}
5... Bxf3 {[%clk 0:02:24.1]} 6. Bxf3 {[%clk 0:02:51.4]} 6... cxd5 {[%clk
0:02:20.2]} 7. Qb3 {[%clk 0:02:30.2]} 7... Qd7 {[%clk 0:02:05.4]} 8. O-O {[%clk
0:02:25.5]} 8... Nc6 {[%clk 0:02:03.8]} 9. Qa4 {[%clk 0:01:53.7]} 9... Nf6
{[%clk 0:02:01.5]} 10. d3 {[%clk 0:01:51.4]} 10... Be7 {[%clk 0:02:00.1]} 11.
Nc3 {[%clk 0:01:48.5]} 11... O-O {[%clk 0:01:50.9]} 12. Bg2 {[%clk 0:01:48.1]}
12... Rfc8 {[%clk 0:01:41.1]} 13. e4 {[%clk 0:01:44.7]} 13... dxe4 {[%clk
0:01:18.9]} 14. dxe4 {[%clk 0:01:42.9]} 14... Bc5 {[%clk 0:01:08.3]} 15. Bg5
{[%clk 0:01:36.7]} 15... h6 {[%clk 0:01:05.5]} 16. Rad1 {[%clk 0:01:07.6]} 16...
Qc7 {[%clk 0:00:58]} 17. Nb5 {[%clk 0:00:46.6]} 17... Qb6 {[%clk 0:00:56.7]} 18.
Bxf6 {[%clk 0:00:46.1]} 18... gxf6 {[%clk 0:00:56.1]} 19. Nc3 {[%clk 0:00:26.6]}
19... Rd8 {[%clk 0:00:52.9]} 20. b3 {[%clk 0:00:17.6]} 20... Qb4 {[%clk
0:00:39.1]} 21. Qxb4 {[%clk 0:00:15.1]} 21... Bxb4 {[%clk 0:00:40]} 22. Nb5
{[%clk 0:00:13.6]} 22... a6 {[%clk 0:00:35.4]} 23. Nc7 {[%clk 0:00:08.9]} 23...
Rac8 {[%clk 0:00:35.5]} 24. Rxd8+ {[%clk 0:00:08.4]} 24... Rxd8 {[%clk
0:00:20.6]} 25. Rc1 {[%clk 0:00:07.6]} 25... Nd4 {[%clk 0:00:19.1]} 26. Bf1
{[%clk 0:00:06.5]} 26... Ba5 {[%clk 0:00:17]} 27. Kg2 {[%clk 0:00:04.2]} 27...
Rc8 {[%clk 0:00:17.1]} 28. Rd1 {[%clk 0:00:03.3]} 28... Nc6 {[%clk 0:00:14]} 29.
Nxa6 {[%clk 0:00:03.2]} 29... bxa6 {[%clk 0:00:14.1]} 30. Rd7 {[%clk 0:00:03.3]}
30... Nb8 {[%clk 0:00:11.5]} 31. Rb7 {[%clk 0:00:03.4]} 31... Rd8 {[%clk
0:00:08.4]} 32. a3 {[%clk 0:00:03.6]} 32... Bc3 {[%clk 0:00:07.5]} 33. b4 {[%clk
0:00:02.8]} 33... Bd4 {[%clk 0:00:07.8]} 34. Ra7 {[%clk 0:00:01.7]} 34... Kg7
{[%clk 0:00:05.9]} 35. Rb7 {[%clk 0:00:02.2]} 35... Nd7 {[%clk 0:00:05.3]} 36.
h4 {[%clk 0:00:03.1]} 36... Ne5 {[%clk 0:00:05.6]} 37. Rc7 {[%clk 0:00:03.4]}
37... Ng4 {[%clk 0:00:05.7]} 38. Rc6 {[%clk 0:00:03.3]} 38... Nxf2 {[%clk
0:00:05.8]} 39. Rxa6 {[%clk 0:00:04.1]} 39... Ng4 {[%clk 0:00:05.8]} 40. b5
{[%clk 0:00:04.5]} 40... Ne3+ {[%clk 0:00:06.2]} 41. Kg1 {[%clk 0:00:04]} 41...
Nxf1+ {[%clk 0:00:04.3]} 42. Kxf1 {[%clk 0:00:04.9]} 42... Bc5 {[%clk
0:00:04.4]} 43. a4 {[%clk 0:00:05.1]} 43... Rd4 {[%clk 0:00:03.9]} 44. a5 {[%clk
0:00:04.5]} 44... Rxe4 {[%clk 0:00:04.1]} 45. b6 {[%clk 0:00:04.7]} 45... Rb4
{[%clk 0:00:03.6]} 46. Ra8 {[%clk 0:00:04.3]} 46... Bxb6 {[%clk 0:00:03.9]} 47.
axb6 {[%clk 0:00:04.1]} 47... Rxb6 {[%clk 0:00:04.8]} 48. Ra7 {[%clk 0:00:04.3]}
48... Rb2 {[%clk 0:00:04.8]} 49. Ra5 {[%clk 0:00:03.9]} 49... f5 {[%clk
0:00:05.2]} 50. Rc5 {[%clk 0:00:03.5]} 50... Kf6 {[%clk 0:00:05.8]} 51. Ra5
{[%clk 0:00:03.9]} 51... Kg6 {[%clk 0:00:05.7]} 52. Rc5 {[%clk 0:00:03.9]} 52...
Kh5 {[%clk 0:00:06]} 53. Rc4 {[%clk 0:00:03.6]} 53... f6 {[%clk 0:00:05.9]} 54.
Ra4 {[%clk 0:00:03.6]} 54... e5 {[%clk 0:00:06.1]} 55. Rc4 {[%clk 0:00:03.5]}
55... e4 {[%clk 0:00:06.5]} 56. Ra4 {[%clk 0:00:03.1]} 56... Kg4 {[%clk
0:00:06.9]} 57. Ra6 {[%clk 0:00:02.7]} 57... Kxg3 {[%clk 0:00:06.8]} 58. Rxf6
{[%clk 0:00:03.3]} 58... f4 {[%clk 0:00:07]} 59. Rxh6 {[%clk 0:00:02.6]} 59...
Kf3 {[%clk 0:00:07.3]} 60. Ke1 {[%clk 0:00:03]} 60... Rb1+ {[%clk 0:00:07.8]}
61. Kd2 {[%clk 0:00:03.3]} 61... e3+ {[%clk 0:00:08.7]} 62. Kd3 {[%clk
0:00:03.9]} 62... Rd1+ {[%clk 0:00:08.5]} 63. Kc2 {[%clk 0:00:04.2]} 63... e2
{[%clk 0:00:09.4]} 64. Re6 {[%clk 0:00:02.8]} 64... e1=Q {[%clk 0:00:09.6]} 65.
Rxe1 {[%clk 0:00:03.3]} 65... Rxe1 {[%clk 0:00:10.5]} 0-1

[Event "Late-Titled-Tuesday-Blitz-February-13-2024"]
[Site "Chess.com"]
[Date "2024.02.13"]
[Round "1"]
[White "LyonBeast"]
[Black "Actuary44"]
[Result "1-0"]
[WhiteElo "3171"]
[BlackElo "2526"]
[TimeControl "180+1"]
[EndTime "14:09:02 PST"]
[Termination "LyonBeast won by checkmate"]

1. e4 {[%clk 0:03:00.9]} 1... b6 {[%clk 0:03:00.2]} 2. d4 {[%clk 0:02:59.5]}
2... Bb7 {[%clk 0:03:00.8]} 3. Bd3 {[%clk 0:02:59]} 3... e6 {[%clk 0:03:01.5]}
4. Nf3 {[%clk 0:02:58.7]} 4... Nf6 {[%clk 0:03:02]} 5. Qe2 {[%clk 0:02:59]} 5...
d5 {[%clk 0:03:02.3]} 6. e5 {[%clk 0:02:59.1]} 6... Nfd7 {[%clk 0:03:02.9]} 7.
h4 {[%clk 0:02:57.8]} 7... c5 {[%clk 0:03:03]} 8. c3 {[%clk 0:02:58.3]} 8... Nc6
{[%clk 0:03:02]} 9. a3 {[%clk 0:02:53.4]} 9... Qc7 {[%clk 0:02:59.4]} 10. Be3
{[%clk 0:02:42.1]} 10... O-O-O {[%clk 0:02:53.7]} 11. Nbd2 {[%clk 0:02:38.8]}
11... h6 {[%clk 0:02:53.7]} 12. b4 {[%clk 0:02:38.3]} 12... c4 {[%clk
0:02:53.9]} 13. Bc2 {[%clk 0:02:38.2]} 13... f5 {[%clk 0:02:53.5]} 14. h5 {[%clk
0:02:37.3]} 14... Be7 {[%clk 0:02:47.9]} 15. Bf4 {[%clk 0:02:28.8]} 15... Nf8
{[%clk 0:02:34.8]} 16. Nf1 {[%clk 0:02:26.1]} 16... g6 {[%clk 0:02:29.6]} 17.
hxg6 {[%clk 0:02:27]} 17... Nxg6 {[%clk 0:02:29.6]} 18. Bh2 {[%clk 0:02:23.9]}
18... Rdg8 {[%clk 0:02:25.8]} 19. Ne3 {[%clk 0:02:18.1]} 19... Kb8 {[%clk
0:02:19]} 20. O-O {[%clk 0:02:05.8]} 20... Bg5 {[%clk 0:02:11.8]} 21. Kh1 {[%clk
0:02:01.3]} 21... Bf4 {[%clk 0:02:07]} 22. g3 {[%clk 0:01:59.9]} 22... Bg5
{[%clk 0:01:58.3]} 23. Ng2 {[%clk 0:01:58.2]} 23... Qg7 {[%clk 0:01:41.6]} 24.
a4 {[%clk 0:01:49.2]} 24... Be7 {[%clk 0:01:29.8]} 25. Rg1 {[%clk 0:01:42.6]}
25... h5 {[%clk 0:01:29.3]} 26. Nf4 {[%clk 0:01:42.8]} 26... Qf7 {[%clk
0:01:08.6]} 27. Qe3 {[%clk 0:01:26.1]} 27... h4 {[%clk 0:01:04.8]} 28. Nxg6
{[%clk 0:01:23.5]} 28... Rxg6 {[%clk 0:00:57.7]} 29. gxh4 {[%clk 0:01:23]} 29...
Bxh4 {[%clk 0:00:43.7]} 30. Rxg6 {[%clk 0:01:19.2]} 30... Qxg6 {[%clk
0:00:44.6]} 31. Rg1 {[%clk 0:01:13.2]} 31... Qh5 {[%clk 0:00:40.3]} 32. Nxh4
{[%clk 0:01:05.1]} 32... Qxh4 {[%clk 0:00:40.2]} 33. Qg3 {[%clk 0:01:05.6]}
33... Qh5 {[%clk 0:00:36]} 34. Bd1 {[%clk 0:01:01]} 34... Qh6 {[%clk 0:00:34.9]}
35. f4 {[%clk 0:00:50.5]} 35... Ne7 {[%clk 0:00:30.7]} 36. Rg2 {[%clk
0:00:49.2]} 36... Bc6 {[%clk 0:00:27]} 37. Qg5 {[%clk 0:00:38.1]} 37... Be8
{[%clk 0:00:20.5]} 38. Qxh6 {[%clk 0:00:33.9]} 38... Rxh6 {[%clk 0:00:21.4]} 39.
Rg7 {[%clk 0:00:33.7]} 39... Ng6 {[%clk 0:00:19.9]} 40. Kg1 {[%clk 0:00:28.9]}
40... Kc8 {[%clk 0:00:14.2]} 41. Rxa7 {[%clk 0:00:27.9]} 41... Kd8 {[%clk
0:00:11.2]} 42. a5 {[%clk 0:00:27.3]} 42... bxa5 {[%clk 0:00:10.9]} 43. bxa5
{[%clk 0:00:28.2]} 43... Rh3 {[%clk 0:00:09.2]} 44. a6 {[%clk 0:00:21.2]} 44...
Rxc3 {[%clk 0:00:09]} 45. Bh5 {[%clk 0:00:19.4]} 45... Rc1+ {[%clk 0:00:05.9]}
46. Kf2 {[%clk 0:00:19.2]} 46... Rc2+ {[%clk 0:00:06.3]} 47. Be2 {[%clk
0:00:15.7]} 47... Ra2 {[%clk 0:00:04.7]} 48. Bg1 {[%clk 0:00:11.6]} 48... Bc6
{[%clk 0:00:04.7]} 49. Kf3 {[%clk 0:00:09.4]} 49... c3 {[%clk 0:00:05.1]} 50.
Be3 {[%clk 0:00:09.5]} 50... Nh4+ {[%clk 0:00:04.4]} 51. Kf2 {[%clk 0:00:06.7]}
51... Ng6 {[%clk 0:00:04.8]} 52. Rg7 {[%clk 0:00:05.6]} 52... Ne7 {[%clk
0:00:04.8]} 53. a7 {[%clk 0:00:05.6]} 53... Nc8 {[%clk 0:00:04.5]} 54. Kf3
{[%clk 0:00:04.6]} 54... Rxa7 {[%clk 0:00:04.1]} 55. Rxa7 {[%clk 0:00:04.6]}
55... Nxa7 {[%clk 0:00:05]} 56. Bc1 {[%clk 0:00:03.9]} 56... Bb5 {[%clk
0:00:05]} 57. Bd1 {[%clk 0:00:04.5]} 57... Bd3 {[%clk 0:00:04.8]} 58. Ke3 {[%clk
0:00:04.6]} 58... Be4 {[%clk 0:00:05.7]} 59. Ba4 {[%clk 0:00:04.1]} 59... Nc6
{[%clk 0:00:06.5]} 60. Bxc6 {[%clk 0:00:03.5]} 60... Kc7 {[%clk 0:00:07]} 61.
Ba4 {[%clk 0:00:04.2]} 61... Kb6 {[%clk 0:00:07.4]} 62. Bd1 {[%clk 0:00:04.9]}
62... Kb5 {[%clk 0:00:07.5]} 63. Bh5 {[%clk 0:00:05.2]} 63... Kc6 {[%clk
0:00:07.2]} 64. Be8+ {[%clk 0:00:05.1]} 64... Kc7 {[%clk 0:00:07.1]} 65. Ba3
{[%clk 0:00:05.8]} 65... c2 {[%clk 0:00:06.5]} 66. Kd2 {[%clk 0:00:05.8]} 66...
Kd8 {[%clk 0:00:05.5]} 67. Ba4 {[%clk 0:00:06.1]} 67... Kc7 {[%clk 0:00:05.1]}
68. Bxc2 {[%clk 0:00:06.7]} 68... Bf3 {[%clk 0:00:03.7]} 69. Ba4 {[%clk
0:00:06.8]} 69... Be4 {[%clk 0:00:03.8]} 70. Kc3 {[%clk 0:00:07.4]} 70... Bf3
{[%clk 0:00:03.8]} 71. Bd6+ {[%clk 0:00:07.4]} 71... Kd8 {[%clk 0:00:02.9]} 72.
Kb4 {[%clk 0:00:08.3]} 72... Be4 {[%clk 0:00:03.1]} 73. Bc6 {[%clk 0:00:08.3]}
73... Bd3 {[%clk 0:00:02.9]} 74. Kc5 {[%clk 0:00:08.7]} 74... Be4 {[%clk
0:00:03.3]} 75. Kb6 {[%clk 0:00:09]} 75... Bd3 {[%clk 0:00:03.6]} 76. Kb7 {[%clk
0:00:09.1]} 76... Be4 {[%clk 0:00:03.5]} 77. Bf8 {[%clk 0:00:09.3]} 77... Bd3
{[%clk 0:00:03.1]} 78. Bg7 {[%clk 0:00:09.7]} 78... Be4 {[%clk 0:00:03.4]} 79.
Bf6# {[%clk 0:00:10.2]} 1-0